bitfinex-derivatives/quotes_BNBF0:USTF0_20250220
["timestamp","ask_amount","ask_price","bid_price","bid_amount"]
[1740051700766,1.14671815,648.53,647.07,1.14653744]
[1740051703168,1.14671815,648.59,647.04,1.6111049]
[1740051705269,1.14671815,648.6,647.04,1.6111049]
[1740051708966,2.43524582,648.76,647.04,1.6111049]
[1740051708967,1.14671815,648.58,647.04,1.6111049]
[1740051709363,3.27507151,648.57,647.04,1.6111049]
[1740051709569,3.27507151,648.56,647.04,1.6111049]
[1740051709768,1.14671815,648.58,647.04,1.6111049]
[1740051709968,3.27602636,648.57,647.04,1.6111049]
[1740051710168,3.27602636,648.56,647.04,1.6111049]
[1740051710369,3.27602636,648.55,647.04,1.6111049]
[1740051710570,1.14671815,648.58,647.04,1.6111049]
[1740051710769,3.27618845,648.57,647.04,1.6111049]
[1740051710969,3.27618845,648.56,647.04,1.6111049]
[1740051711168,3.27618845,648.55,647.04,1.6111049]
[1740051711372,1.14671815,648.45,647.1,1.14653744]
[1740051714368,1.14671815,648.42,647.13,1.14653744]
[1740051717074,1.14671815,648.77,647.06,1.61094952]
[1740051721975,1.14671815,648.78,647.06,1.61094952]
[1740051723678,3.27679226,648.77,647.06,1.61094952]
[1740051723976,3.27679226,648.76,647.06,1.61094952]
[1740051724177,3.27679226,648.75,647.06,1.61094952]
[1740051724372,3.27679226,648.74,647.06,1.61094952]
[1740051724573,1.14671815,648.79,647.06,1.61094952]
[1740051724770,2.43628689,648.74,647.06,1.61094952]
[1740051725477,1.14671815,648.79,647.06,1.61094952]
[1740051726978,2.43628689,649.14,647.06,1.61094952]
[1740051726979,3.27642797,648.78,647.06,1.61094952]
[1740051727171,3.27642797,648.77,647.06,1.61094952]
[1740051727472,1.14671815,648.89,647.06,1.61094952]
[1740051727679,3.27582446,648.88,647.06,1.61094952]
[1740051727972,5.71133048,648.87,647.06,1.61094952]
[1740051728177,3.27582446,648.86,647.06,1.61094952]
[1740051728377,3.27582446,648.85,647.06,1.61094952]
[1740051728577,3.27531958,648.84,647.06,1.61094952]
[1740051728772,2.43550602,648.87,647.06,1.61094952]
[1740051728975,3.27528145,648.86,647.06,1.61094952]
[1740051729172,2.43550602,648.87,647.06,1.61094952]
[1740051729774,1.14671815,648.8,647.24,1.14653744]
[1740051732479,9.18252465,655.9,647.13,1.61040904]
[1740051732480,1.14671815,649.03,647.13,1.61040904]
[1740051734682,1.14671815,649.04,647.13,1.61040904]
[1740051737786,3.27335898,649.03,647.13,1.61040904]
[1740051737982,3.27335898,649.02,647.13,1.61040904]
[1740051738187,3.27335898,649.01,647.13,1.61040904]
[1740051738389,3.27335898,649.0,647.13,1.61040904]
[1740051738589,3.27335898,648.99,647.13,1.61040904]
[1740051738789,3.27335898,648.98,647.13,1.61040904]
[1740051738989,3.27335898,648.97,647.13,1.61040904]
[1740051739190,5.70708008,648.96,647.13,1.61040904]
[1740051739391,3.27335898,648.95,647.13,1.61040904]
[1740051739792,2.4337211,648.96,647.13,1.61040904]
[1740051740491,5.70542825,649.04,647.13,1.61040904]
[1740051740696,3.27170715,649.03,647.13,1.61040904]
[1740051740892,3.27170715,649.02,647.13,1.61040904]
[1740051741087,3.27170715,649.01,647.13,1.61040904]
[1740051741286,3.27170715,649.0,647.13,1.61040904]
[1740051741491,3.27170715,648.99,647.13,1.61040904]
[1740051741688,1.14671815,648.96,647.13,1.61040904]
[1740051743295,5.70487811,648.95,647.13,1.61040904]
[1740051743495,3.27115701,648.94,647.13,1.61040904]
[1740051743696,5.70487811,648.95,647.13,1.61040904]
[1740051743898,3.27115701,648.94,647.13,1.61040904]
[1740051744496,5.70487811,648.95,647.13,1.61040904]
[1740051744689,3.27115701,648.94,647.13,1.61040904]
[1740051745492,3.27115701,648.93,647.13,1.61040904]
[1740051745693,3.27115701,648.94,647.13,1.61040904]
[1740051745897,5.70487811,648.94,647.13,1.61040904]
[1740051746095,3.27115701,648.93,647.13,1.61040904]
[1740051746499,2.4337211,648.94,647.13,1.61040904]
[1740051746999,1.14671815,648.91,647.13,2.75694648]
[1740051749301,1.14671815,648.92,647.13,1.61040904]
[1740051751697,3.26980283,649.03,647.13,1.61040904]
[1740051751698,1.14671815,648.94,647.14,1.14653744]
[1740051754000,1.14671815,648.92,647.14,1.14653744]
[1740051756706,1.14671815,649.01,647.14,1.14653744]
[1740051757008,1.14671815,649.01,647.18,1.14653744]
[1740051758104,1.14671815,649.06,647.21,1.14653744]
[1740051761710,1.14671815,649.07,647.24,1.14653744]
[1740051762908,3.26758158,649.06,647.24,1.14653744]
[1740051763110,3.26758158,649.05,647.24,1.14653744]
[1740051763411,3.26758158,649.04,647.24,1.14653744]
[1740051763606,3.26758158,649.03,647.24,1.14653744]
[1740051763811,3.26758158,649.02,647.24,1.14653744]
[1740051764009,3.26758158,649.01,647.24,1.14653744]
[1740051764209,3.26758158,649.0,647.24,1.14653744]
[1740051764404,3.26758158,648.99,647.24,1.14653744]
[1740051764614,3.26758158,648.98,647.24,1.14653744]
[1740051764908,1.14671815,648.84,647.41,1.14653744]
[1740051767015,1.14671815,648.87,647.42,1.14653744]
[1740051769116,1.14671815,648.88,647.42,1.14653744]
[1740051771015,1.14671815,648.86,647.41,1.14653744]
[1740051773826,1.14671815,648.85,647.41,1.14653744]
[1740051776823,1.14671815,648.84,647.41,1.14653744]
[1740051777023,3.26916678,648.83,647.41,1.14653744]
[1740051777223,1.14671815,648.84,647.41,1.14653744]
[1740051777428,3.26978104,648.83,647.41,1.14653744]
[1740051777729,1.14671815,648.84,647.41,1.14653744]
[1740051779325,3.27077052,648.83,647.41,1.14653744]
[1740051779527,1.14671815,648.84,647.41,1.14653744]
[1740051779730,1.14671815,648.82,647.41,1.14653744]
[1740051780925,2.43166523,648.81,647.41,1.14653744]
[1740051781127,3.2708805,648.8,647.41,1.14653744]
[1740051781324,3.2708805,648.79,647.41,1.14653744]
[1740051781528,2.43166523,648.81,647.41,1.14653744]
[1740051781730,3.27142199,648.8,647.41,1.14653744]
[1740051781924,3.27142199,648.79,647.41,1.14653744]
[1740051782130,1.14671815,648.8,647.42,1.14653744]
[1740051782431,3.27143332,648.79,647.42,1.14653744]
[1740051782732,3.27143332,648.78,647.42,1.14653744]
[1740051782928,1.14671815,648.8,647.42,1.14653744]
[1740051783130,3.27196996,648.79,647.42,1.14653744]
[1740051783330,3.27196996,648.78,647.42,1.14653744]
[1740051783528,3.27196996,648.77,647.42,1.14653744]
[1740051783732,1.14671815,648.8,647.42,1.14653744]
[1740051783933,3.27262089,648.79,647.42,1.14653744]
[1740051784134,3.27262089,648.78,647.42,1.14653744]
[1740051784432,3.27262089,648.77,647.42,1.14653744]
[1740051784629,3.27262089,648.76,647.42,1.14653744]
[1740051784829,1.14671815,648.8,647.42,1.14653744]
[1740051785133,4.42052277,648.79,647.44,1.14653744]
[1740051785334,3.27380462,648.78,647.44,1.14653744]
[1740051785529,3.58055346,648.79,647.44,1.14653744]
[1740051785530,3.27380462,648.77,647.44,1.14653744]
[1740051785736,3.27380462,648.76,647.44,1.14653744]
[1740051785934,3.27380462,648.75,647.44,1.14653744]
[1740051786135,3.27380462,648.74,647.44,1.14653744]
[1740051786336,1.14671815,648.79,647.44,1.14653744]
[1740051786536,3.27425817,648.78,647.44,1.14653744]
[1740051786737,3.27425817,648.77,647.44,1.14653744]
[1740051786937,3.27425817,648.76,647.44,1.14653744]
[1740051787138,3.27437997,648.75,647.44,1.14653744]
[1740051787337,1.14671815,648.74,647.44,1.14653744]
[1740051789535,1.14671815,648.72,647.47,1.14653744]
[1740051792341,1.14671815,648.77,647.45,1.14653744]
[1740051794738,1.14671815,648.77,647.37,2.75672294]
[1740051794739,1.14671815,648.88,647.37,1.6101855]
[1740051799347,1.14671815,648.86,647.37,1.6101855]
[1740051800640,3.27526317,648.85,647.37,1.6101855]
[1740051800846,3.27526317,648.84,647.37,1.6101855]
[1740051801146,3.27526317,648.83,647.37,1.6101855]
[1740051801345,3.27526317,648.82,647.37,1.6101855]
[1740051801541,3.27526317,648.81,647.37,1.6101855]
[1740051801745,3.27526317,648.8,647.37,1.6101855]
[1740051802045,1.14671815,648.86,647.37,1.6101855]
[1740051802046,3.27526317,648.79,647.37,1.6101855]
[1740051802345,3.27526317,648.78,647.37,1.6101855]
[1740051802547,3.27526317,648.77,647.37,1.6101855]
[1740051802745,3.27526317,648.76,647.37,1.6101855]
[1740051802946,3.27526317,648.75,647.37,1.6101855]
[1740051803146,3.27526317,648.74,647.37,1.6101855]
[1740051803342,2.43500096,648.78,647.37,1.6101855]
[1740051803547,3.27677724,648.77,647.37,1.6101855]
[1740051803741,3.27677724,648.76,647.37,1.6101855]
[1740051803945,3.27677724,648.75,647.37,1.6101855]
[1740051804141,3.27677724,648.74,647.37,1.6101855]
[1740051804342,1.14671815,648.86,647.37,1.6101855]
[1740051804548,1.14671815,648.73,647.53,1.14653744]
[1740051806646,1.14671815,648.74,647.52,1.14653744]
[1740051807452,3.27656467,648.73,647.52,1.14653744]
[1740051807648,0.30830417,648.71,647.52,1.14653744]
[1740051808950,0.30830417,648.71,647.43,1.61004893]
[1740051808951,0.30830417,648.71,647.53,1.14653744]
[1740051811354,0.30830417,648.71,647.43,1.61004893]
[1740051832462,0.30830417,648.71,647.43,2.75658637]
[1740051835270,0.30830417,648.71,647.43,1.61004893]
[1740051838070,0.30830417,648.71,647.45,1.14653744]
[1740051840268,0.30830417,648.71,647.43,1.61004893]
[1740051842473,0.30830417,648.71,647.47,1.14653744]
[1740051846078,0.30830417,648.71,647.46,1.14653744]
[1740051848780,0.30830417,648.71,647.43,1.61004893]
[1740051861883,0.30830417,648.71,647.45,1.14653744]
[1740051864087,0.30830417,648.71,647.43,1.61004893]
[1740051890900,3.2783445,648.7,647.43,1.61004893]
[1740051891200,0.30831843,648.68,647.43,1.61004893]
[1740051891900,0.30831843,648.68,647.44,1.14653744]
[1740051893802,0.30831843,648.68,647.46,1.14653744]
[1740051895798,0.30831843,648.68,647.47,1.14653744]
[1740051896804,3.27828764,648.67,647.47,1.14653744]
[1740051897002,0.30833269,648.65,647.47,1.14653744]
[1740051898308,1.45505084,648.65,647.47,1.14653744]
[1740051901907,1.45505084,648.65,647.43,1.61004893]
[1740051901908,0.30833269,648.65,647.44,1.14653744]
[1740051903611,0.30833269,648.65,647.45,1.14653744]
[1740051905210,1.14671815,648.68,647.45,1.14653744]
[1740051906811,4.2308755,652.65,647.43,1.61004893]
[1740051906812,1.14671815,648.76,647.43,1.61004893]
[1740051909019,1.14671815,648.78,647.43,1.61004893]
[1740051910919,1.14671815,648.78,647.36,1.14653744]
[1740051911120,1.14671815,648.77,647.37,1.14653744]
[1740051911912,3.27993825,648.76,647.37,1.14653744]
[1740051912114,3.27993825,648.75,647.37,1.14653744]
[1740051912318,1.14671815,648.77,647.37,1.14653744]
[1740051912319,3.27993825,648.74,647.37,1.14653744]
[1740051912513,3.27993825,648.73,647.37,1.14653744]
[1740051912817,3.27993825,648.72,647.37,1.14653744]
[1740051913017,3.27993825,648.71,647.37,1.14653744]
[1740051913218,3.27993825,648.7,647.37,1.14653744]
[1740051913419,3.27993825,648.69,647.37,1.14653744]
[1740051913619,3.27993825,648.68,647.37,1.14653744]
[1740051913819,3.27993825,648.67,647.37,1.14653744]
[1740051914020,4.4266564,648.66,647.21,1.6106078]
[1740051914219,3.27993825,648.65,647.21,1.6106078]
[1740051914416,1.14671815,648.66,647.0,1.14653744]
[1740051915225,1.14671815,648.66,647.01,1.61074447]
[1740051916532,1.14671815,649.2,647.01,1.61074447]
[1740051918131,3.27021608,649.19,647.01,1.61074447]
[1740051918331,3.27021608,649.18,647.01,1.61074447]
[1740051918631,5.70155997,649.17,647.01,1.61074447]
[1740051918928,3.27021608,649.16,647.01,1.61074447]
[1740051919126,3.27021608,649.15,647.01,1.61074447]
[1740051919325,3.27021608,649.14,647.01,1.61074447]
[1740051919624,3.27021608,649.13,647.01,1.61074447]
[1740051919824,2.43134389,649.17,647.01,1.61074447]
[1740051919825,3.27021608,649.12,647.01,1.61074447]
[1740051920027,3.27021608,649.11,647.01,1.61074447]
[1740051920232,3.27021608,649.1,647.01,1.61074447]
[1740051920432,3.27021608,649.09,647.01,1.61074447]
[1740051920731,3.27021608,649.08,647.01,1.61074447]
[1740051920931,3.27021608,649.07,647.01,1.61074447]
[1740051921127,3.27021608,649.06,647.01,1.61074447]
[1740051921331,2.43134389,649.09,647.01,1.61074447]
[1740051921332,1.14671815,649.02,647.01,2.75728191]
[1740051921532,3.27021608,649.01,647.01,2.75728191]
[1740051921833,3.27021608,649.0,647.01,2.75728191]
[1740051922033,3.27021608,648.99,647.01,2.75728191]
[1740051922228,5.70155997,648.98,647.01,2.75728191]
[1740051922534,3.27021608,648.97,647.01,2.75728191]
[1740051922735,3.27021608,648.96,647.01,2.75728191]
[1740051923034,3.27021608,648.95,647.01,2.75728191]
[1740051923332,3.27021608,648.94,647.01,2.75728191]
[1740051923533,5.70155997,648.93,647.01,2.75728191]
[1740051923733,3.27021608,648.92,647.01,2.75728191]
[1740051924033,3.27021608,648.91,647.01,2.75728191]
[1740051924234,1.14671815,648.77,647.01,1.61074447]
[1740051924434,3.27021608,648.76,647.01,1.61074447]
[1740051924632,3.27021608,648.75,647.01,1.61074447]
[1740051924832,3.27021608,648.74,647.01,1.61074447]
[1740051925128,3.27021608,648.73,647.01,1.61074447]
[1740051925335,3.27021608,648.72,647.01,1.61074447]
[1740051925534,3.27021608,648.71,647.01,1.61074447]
[1740051925730,3.27021608,648.7,647.01,1.61074447]
[1740051925934,3.27021608,648.69,647.01,1.61074447]
[1740051926128,3.27021608,648.73,647.01,1.61074447]
[1740051926329,3.27021608,648.72,647.01,1.61074447]
[1740051926627,2.43134389,648.74,647.01,1.61074447]
[1740051926628,3.27021608,648.73,647.01,1.61074447]
[1740051927233,2.43134389,648.74,647.01,1.61074447]
[1740051927437,5.70155997,648.74,647.01,1.61074447]
[1740051927637,3.27021608,648.73,647.01,1.61074447]
[1740051927833,3.27021608,648.74,647.01,1.61074447]
[1740051928135,2.43134389,648.75,647.01,1.61074447]
[1740051929831,3.27021608,648.79,647.01,1.61074447]
[1740051930238,2.43134389,648.8,647.01,1.61074447]
[1740051930739,5.70155997,648.8,647.01,1.61074447]
[1740051930940,3.27021608,648.79,647.01,1.61074447]
[1740051931536,2.43134389,648.8,647.01,1.61074447]
[1740051931740,3.27021608,648.79,647.01,1.61074447]
[1740051931937,3.27021608,648.78,647.01,1.61074447]
[1740051932138,3.27021608,648.77,647.01,1.61074447]
[1740051932341,3.27021608,648.76,647.01,1.61074447]
[1740051932537,3.27021608,648.75,647.01,1.61074447]
[1740051932736,3.27021608,648.74,647.01,1.61074447]
[1740051932936,2.43134389,648.83,647.01,1.61074447]
[1740051932937,3.27021608,648.73,647.01,1.61074447]
[1740051933140,3.27021608,648.72,647.01,1.61074447]
[1740051933337,3.27021608,648.71,647.01,1.61074447]
[1740051933536,3.27021608,648.7,647.01,1.61074447]
[1740051933736,3.27021608,648.69,647.01,1.61074447]
[1740051933941,3.26369626,648.68,647.01,1.61074447]
[1740051934142,3.26359332,648.67,647.01,1.61074447]
[1740051934344,2.43134389,648.7,647.01,1.61074447]
[1740051934543,3.2636368,648.69,647.01,1.61074447]
[1740051934750,3.2636368,648.68,647.01,1.61074447]
[1740051934946,1.14671815,648.82,647.01,1.61074447]
[1740051935147,0.3082614,648.8,647.01,1.61074447]
[1740051935347,3.26351221,648.79,647.01,1.61074447]
[1740051935542,0.30827566,648.77,647.01,1.61074447]
[1740051935747,4.41023036,648.76,647.01,1.61074447]
[1740051935946,0.30828991,648.74,647.01,1.61074447]
[1740051936141,3.26351221,648.73,647.01,1.61074447]
[1740051936342,0.30830417,648.71,647.01,1.61074447]
[1740051936548,3.26351221,648.7,647.01,1.61074447]
[1740051936746,0.30831843,648.68,647.01,1.61074447]
[1740051936939,3.26351221,648.67,647.01,1.61074447]
[1740051937145,0.30833269,648.65,647.01,1.61074447]
[1740051943951,0.30833269,648.65,647.01,2.75728191]
[1740051946754,0.30833269,648.65,647.07,1.14653744]
[1740051949457,0.30833269,648.65,647.11,1.14653744]
[1740051951756,0.30833269,648.65,647.03,1.61063886]
[1740051951757,1.45505084,648.65,647.15,1.14653744]
[1740051951958,3.26511268,648.64,647.15,1.14653744]
[1740051952160,0.30834695,648.62,647.15,1.14653744]
[1740051952360,3.26511268,648.61,647.15,1.14653744]
[1740051952555,0.30836121,648.59,647.15,1.14653744]
[1740051954462,0.30836121,648.59,647.18,1.14653744]
[1740051957062,1.14671815,648.56,647.23,1.14653744]
[1740051957262,0.30838498,648.54,647.23,1.14653744]
[1740051961671,0.30838498,648.54,647.22,1.14653744]
[1740051963664,0.30838498,648.54,647.18,1.14653744]
[1740051968872,0.30838498,648.54,647.14,1.61057053]
[1740051971072,0.30838498,648.54,647.17,1.14653744]
[1740051972972,0.30838498,648.54,647.14,1.61057053]
[1740051975974,1.14671815,649.11,647.14,1.61057053]
[1740051977373,1.14671815,649.22,647.14,1.61057053]
[1740051978672,3.27436934,649.21,647.14,1.61057053]
[1740051978874,3.27436934,649.2,647.14,1.61057053]
[1740051979075,3.27436934,649.19,647.14,1.61057053]
[1740051979273,3.27436934,649.18,647.14,1.61057053]
[1740051979479,3.27436934,649.17,647.14,1.61057053]
[1740051979678,3.27436934,649.16,647.14,1.61057053]
[1740051979877,3.27436934,649.15,647.14,1.61057053]
[1740051980074,3.27436934,649.14,647.14,1.61057053]
[1740051980280,3.27436934,649.13,647.14,1.61057053]
[1740051980481,3.27436934,649.12,647.14,1.61057053]
[1740051980777,3.27436934,649.11,647.14,1.61057053]
[1740051980983,3.27436934,649.1,647.14,1.61057053]
[1740051981177,3.27436934,649.09,647.14,1.61057053]
[1740051981381,3.27436934,649.08,647.14,1.61057053]
[1740051981683,3.27436934,649.07,647.14,1.61057053]
[1740051981884,3.27436934,649.06,647.14,1.61057053]
[1740051982079,3.27436934,649.05,647.14,1.61057053]
[1740051982286,3.27436934,649.04,647.14,1.61057053]
[1740051982585,1.14671815,649.01,647.27,1.14653744]
[1740051982784,3.27436934,649.0,647.27,1.14653744]
[1740051982985,3.27436934,648.99,647.27,1.14653744]
[1740051983185,3.27436934,648.98,647.27,1.14653744]
[1740051983388,3.27436934,648.97,647.27,1.14653744]
[1740051983582,3.27436934,648.96,647.27,1.14653744]
[1740051983784,3.27436934,648.95,647.27,1.14653744]
[1740051983981,3.27436934,648.94,647.27,1.14653744]
[1740051984188,3.27436934,648.93,647.27,1.14653744]
[1740051984382,2.4342578,648.99,647.27,1.14653744]
[1740051984588,3.26646138,648.98,647.27,1.14653744]
[1740051984790,3.26646138,648.97,647.27,1.14653744]
[1740051985090,2.4342578,648.97,647.27,1.14653744]
[1740051985490,3.77747145,650.26,647.19,1.61006755]
[1740051985491,1.14671815,648.99,647.28,1.14653744]
[1740051988595,1.14671815,649.59,647.19,1.61006755]
[1740051990896,1.38124554,649.84,647.19,1.61006755]
[1740051990897,1.14671815,649.62,647.19,1.61006755]
[1740051994097,2.35003581,650.03,647.19,1.61006755]
[1740051994098,1.14671815,650.03,647.19,1.61006755]
[1740051994299,0.282973,650.02,647.19,1.61006755]
[1740051994799,1.14671815,650.03,647.19,1.61006755]
[1740051994998,0.30774912,649.88,647.19,1.61006755]
[1740051998299,3.53910196,649.87,647.19,1.61006755]
[1740051998499,0.30781543,649.74,647.19,1.61006755]
[1740052000397,0.28294891,649.73,647.19,1.61006755]
[1740052000599,0.30787703,649.61,647.19,1.61006755]
[1740052001599,0.30787703,649.61,647.29,1.14653744]
[1740052003908,1.45459518,649.61,647.23,1.60919274]
[1740052006207,1.14671815,649.6,647.23,1.60919274]
[1740052006406,0.30793391,649.49,647.23,1.60919274]
[1740052011006,0.30793391,649.49,647.31,1.14653744]
[1740052013310,1.14671815,649.46,647.35,1.14653744]
[1740052013712,0.30799556,649.36,647.35,1.14653744]
[1740052016213,0.30799556,649.36,647.48,1.14653744]
[1740052019016,0.30799556,649.36,647.45,1.14653744]
[1740052024427,1.14671815,649.3,647.45,1.14653744]
[1740052024727,0.30803351,649.28,647.45,1.14653744]
[1740052026130,3.25898071,649.27,647.45,1.14653744]
[1740052026430,0.30804774,649.25,647.45,1.14653744]
[1740052026631,3.25898071,649.24,647.45,1.14653744]
[1740052026830,0.30806198,649.22,647.51,1.14653744]
[1740052027025,3.25898071,649.21,647.51,1.14653744]
[1740052027227,3.2617597,649.2,647.51,1.14653744]
[1740052027431,0.30806198,649.22,647.51,1.14653744]
[1740052027626,3.26231733,649.21,647.51,1.14653744]
[1740052027829,3.26231733,649.2,647.51,1.14653744]
[1740052028031,2.42498902,649.21,647.51,1.14653744]
[1740052028231,0.30808096,649.18,647.51,1.14653744]
[1740052029539,1.14671815,649.06,647.66,1.14653744]
[1740052029738,0.30814741,649.04,647.66,1.14653744]
[1740052031838,1.45486556,649.04,647.66,1.14653744]
[1740052034744,0.30814741,649.04,647.47,1.60952766]
[1740052042156,0.30814741,649.04,647.54,1.14653744]
[1740052045155,0.30814741,649.04,647.53,1.14653744]
[1740052050463,0.30814741,649.04,647.59,1.14653744]
[1740052052257,0.30814741,649.04,647.58,1.14653744]
[1740052055367,0.30814741,649.04,647.66,1.14653744]
[1740052056465,1.14671815,649.11,647.66,1.14653744]
[1740052058260,1.14671815,649.14,647.74,1.14653744]
[1740052059659,3.27941422,649.13,647.74,1.14653744]
[1740052059864,1.14671815,649.14,647.74,1.14653744]
[1740052060167,5.71709652,649.13,647.72,1.14653744]
[1740052060467,3.27941338,649.12,647.72,1.14653744]
[1740052060667,3.27941338,649.11,647.72,1.14653744]
[1740052060863,2.43768314,649.13,647.72,1.14653744]
[1740052061069,3.27974412,649.12,647.72,1.14653744]
[1740052061369,3.27974412,649.11,647.72,1.14653744]
[1740052061565,1.14671815,649.14,647.72,1.14653744]
[1740052061765,3.27982116,649.13,647.72,1.14653744]
[1740052061966,5.71777586,649.12,647.72,1.14653744]
[1740052062165,2.4379547,649.12,647.72,1.14653744]
[1740052063168,1.14671815,649.1,647.76,1.14653744]
[1740052065470,1.14671815,649.32,647.62,1.60937879]
[1740052067364,1.14671815,649.34,647.62,1.60937879]
[1740052070173,1.14671815,649.38,647.62,1.60937879]
[1740052072076,3.28004607,649.37,647.62,1.60937879]
[1740052072374,3.28004607,649.36,647.62,1.60937879]
[1740052072675,3.28004607,649.35,647.62,1.60937879]
[1740052072872,3.28004607,649.34,647.62,1.60937879]
[1740052073071,3.28004607,649.33,647.62,1.60937879]
[1740052073271,3.28004607,649.32,647.62,1.60937879]
[1740052073472,3.28004607,649.31,647.62,1.60937879]
[1740052073672,2.43814801,649.36,647.62,1.60937879]
[1740052073872,3.27881527,649.35,647.62,1.60937879]
[1740052074169,3.27881527,649.34,647.62,1.60937879]
[1740052074368,3.27881527,649.33,647.62,1.60937879]
[1740052074572,3.27881527,649.32,647.62,1.60937879]
[1740052074773,3.2786961,649.31,647.62,1.60937879]
[1740052075076,2.43688223,649.33,647.62,1.60937879]
[1740052076177,3.2784684,649.44,647.62,1.60937879]
[1740052076374,1.14671815,649.33,647.7,1.14653744]
[1740052078980,1.14671815,649.42,647.65,2.75576119]
[1740052080782,0.30797659,649.4,647.65,2.75576119]
[1740052081581,0.30797659,649.4,647.65,1.60922375]
[1740052090396,0.30797659,649.4,647.7,1.14653744]
[1740052093397,0.30797659,649.4,647.78,1.14653744]
[1740052096600,0.30797659,649.4,647.7,1.60877119]
[1740052096601,0.30797659,649.4,647.8,1.14653744]
[1740052100503,0.30797659,649.4,647.82,1.14653744]
[1740052104205,0.30797659,649.4,647.81,1.14653744]
[1740052107004,0.30797659,649.4,647.75,1.60882697]
[1740052107005,0.30797659,649.4,647.88,1.14653744]
[1740052109810,0.30797659,649.4,647.85,1.14653744]
[1740052111504,1.14671815,649.38,647.8,1.14653744]
[1740052111709,0.30799556,649.36,647.8,1.14653744]
[1740052114112,3.2724383,649.35,647.83,1.14653744]
[1740052114314,0.30800979,649.33,647.83,1.14653744]
[1740052116820,1.14671815,649.31,648.01,1.14653744]
[1740052117015,0.30802876,649.29,648.01,1.14653744]
[1740052117721,1.14671815,649.31,648.01,1.14653744]
[1740052118920,1.14671815,649.35,648.03,1.14653744]
[1740052122118,1.14671815,649.33,648.05,1.14653744]
[1740052123924,1.14671815,649.37,648.05,1.14653744]
[1740052124224,1.14671815,649.37,648.01,1.14653744]
[1740052127030,1.14671815,649.44,648.02,1.14653744]
[1740052129125,1.14671815,649.46,648.02,1.14653744]
[1740052131732,1.14671815,649.46,647.93,1.14653744]
[1740052131733,2.35003581,649.88,647.93,1.14653744]
[1740052131929,1.14671815,650.02,647.87,1.60863486]
[1740052132332,1.13924678,650.02,647.87,1.60863486]
[1740052134944,2.43461514,650.2,647.87,1.60863486]
[1740052135144,1.60817024,650.01,647.87,1.60863486]
[1740052135342,2.43461514,650.2,647.87,1.60863486]
[1740052135543,3.27327945,650.25,647.87,1.60863486]
[1740052135741,3.27327945,650.38,647.87,1.60863486]
[1740052136146,2.43461514,650.39,647.87,1.60863486]
[1740052136646,0.28277891,650.38,647.87,1.60863486]
[1740052137245,1.60794113,650.37,647.87,1.60863486]
[1740052137447,0.28277891,650.36,647.87,1.60863486]
[1740052138941,3.27327945,650.35,647.87,1.60863486]
[1740052139145,3.55605836,650.34,647.87,1.60863486]
[1740052139346,3.55605836,650.33,647.87,1.60863486]
[1740052139548,4.31801961,650.32,647.87,1.60863486]
[1740052139744,3.55605836,650.31,647.87,1.60863486]
[1740052139951,3.55605836,650.3,647.87,1.60863486]
[1740052140142,3.55605836,650.29,647.87,1.60863486]
[1740052140347,3.55605836,650.28,647.87,1.60863486]
[1740052140551,3.55605836,650.27,647.87,1.60863486]
[1740052140750,3.55605836,650.26,647.87,1.60863486]
[1740052140949,3.55605836,650.25,647.87,1.60863486]
[1740052141251,3.556079,650.24,647.87,1.60863486]
[1740052141548,3.556079,650.23,647.87,1.60863486]
[1740052141746,3.556079,650.22,647.87,1.60863486]
[1740052141951,3.556079,650.21,647.87,1.60863486]
[1740052142147,3.556079,650.2,647.87,1.60863486]
[1740052142347,3.556079,650.19,647.87,1.60863486]
[1740052142651,3.556079,650.18,647.87,1.60863486]
[1740052142850,3.556079,650.17,647.87,1.60863486]
[1740052143047,2.43461514,650.21,647.87,2.7551723]
[1740052143048,1.38124554,649.99,647.87,2.7551723]
[1740052143252,3.27327945,649.98,647.87,2.7551723]
[1740052143451,3.27327945,649.97,647.87,2.7551723]
[1740052143652,5.70789459,649.96,647.87,2.7551723]
[1740052143851,3.27327945,649.95,647.87,2.7551723]
[1740052144047,3.27327945,649.94,647.87,2.7551723]
[1740052144250,3.27327945,649.93,647.87,2.7551723]
[1740052144446,3.27327945,649.92,647.87,2.7551723]
[1740052144747,3.27327945,649.91,647.87,2.7551723]
[1740052144946,3.27327945,649.9,647.87,2.7551723]
[1740052145152,3.27327945,649.89,647.87,2.7551723]
[1740052145351,5.70789459,649.88,647.87,2.7551723]
[1740052145546,3.27327945,649.87,647.87,2.7551723]
[1740052145748,3.27327945,649.86,647.87,2.7551723]
[1740052145948,3.27327945,649.85,647.87,2.7551723]
[1740052146147,3.27327945,649.84,647.87,2.7551723]
[1740052146346,3.27327945,649.83,647.87,1.60863486]
[1740052146553,3.27327945,649.82,647.87,1.60863486]
[1740052146753,3.27327945,649.81,647.87,1.60863486]
[1740052146953,3.27327945,649.8,647.87,1.60863486]
[1740052147154,3.27327945,649.79,647.87,1.60863486]
[1740052147354,3.27327945,649.78,647.87,1.60863486]
[1740052147554,3.27327945,649.77,647.87,1.60863486]
[1740052147756,3.27327945,649.76,647.87,1.60863486]
[1740052147957,3.27327945,649.75,647.87,1.60863486]
[1740052148255,3.27327945,649.74,647.87,1.60863486]
[1740052148456,5.70789459,649.73,647.87,1.60863486]